[Event "Live Chess"]
[Site "Chess.com"]
[Date "2024.06.02"]
[Round "-"]
[White "Hoogleboogle"]
[Black "Isambard_Thomas"]
[Result "0-1"]
[WhiteElo "1330"]
[BlackElo "2172"]
[TimeControl "300"]
[EndTime "0:02:39 PDT"]
[Termination "Isambard_Thomas won by checkmate"]

1. d4 {[%clk 0:04:55.5]} 1... Nf6 {[%clk 0:04:58.7]} 2. c4 {[%clk 0:04:53.1]}
2... e5 {[%clk 0:04:57.7]} 3. Nc3 {[%clk 0:04:52.7]} 3... e4 {[%clk 0:04:54.7]}
4. Bg5 {[%clk 0:04:48.2]} 4... Bb4 {[%clk 0:04:52.6]} 5. e3 {[%clk 0:04:45.3]}
5... Bxc3+ {[%clk 0:04:43.1]} 6. bxc3 {[%clk 0:04:43.4]} 6... h6 {[%clk
0:04:42.7]} 7. Bh4 {[%clk 0:04:40.1]} 7... d6 {[%clk 0:04:34.6]} 8. Ne2 {[%clk
0:04:28.9]} 8... g5 {[%clk 0:04:30.6]} 9. Bg3 {[%clk 0:04:27.1]} 9... Bf5 {[%clk
0:04:28]} 10. d5 {[%clk 0:04:13.6]} 10... Nbd7 {[%clk 0:04:05.5]} 11. Nd4 {[%clk
0:04:11.5]} 11... Bg6 {[%clk 0:04:04.5]} 12. Be2 {[%clk 0:04:04.8]} 12... Ne5
{[%clk 0:03:57.7]} 13. f4 {[%clk 0:03:51.3]} 13... exf3 {[%clk 0:02:57.9]} 14.
Nxf3 {[%clk 0:03:43.1]} 14... Nxf3+ {[%clk 0:02:41]} 15. Bxf3 {[%clk 0:03:40.8]}
15... O-O {[%clk 0:02:38.3]} 16. O-O {[%clk 0:03:38.5]} 16... Ne4 {[%clk
0:02:34.1]} 17. Qb3 {[%clk 0:03:28.9]} 17... Nxg3 {[%clk 0:02:25.6]} 18. hxg3
{[%clk 0:03:27]} 18... b6 {[%clk 0:02:20.2]} 19. Rae1 {[%clk 0:03:16.8]} 19...
Qe7 {[%clk 0:02:11.8]} 20. Qb5 {[%clk 0:03:12.8]} 20... Bd3 {[%clk 0:02:06.8]}
21. Rf2 {[%clk 0:03:06.5]} 21... Qe5 {[%clk 0:02:05.8]} 22. Qd7 {[%clk
0:02:50.9]} 22... Rae8 {[%clk 0:01:58.4]} 23. Be2 {[%clk 0:02:22]} 23... Qxe3
{[%clk 0:01:48.9]} 24. Bxd3 {[%clk 0:02:12.8]} 24... Qxe1+ {[%clk 0:01:45.9]}
25. Kh2 {[%clk 0:02:08.3]} 25... Qxf2 {[%clk 0:01:40.6]} 26. a4 {[%clk 0:01:36]}
26... Re5 {[%clk 0:01:33.2]} 27. a5 {[%clk 0:01:21.6]} 27... Re3 {[%clk
0:01:30.6]} 28. Bf5 {[%clk 0:01:14.8]} 28... Qxg3+ {[%clk 0:01:28.6]} 29. Kg1
{[%clk 0:01:12.7]} 29... Re1# {[%clk 0:01:28.2]} 0-1

[Event "Live Chess"]
[Site "Chess.com"]
[Date "2024.06.02"]
[Round "-"]
[White "f4nomore"]
[Black "AlanBstard10"]
[Result "0-1"]
[WhiteElo "1249"]
[BlackElo "1177"]
[TimeControl "300"]
[EndTime "0:02:53 PDT"]
[Termination "AlanBstard10 won on time"]

1. d4 {[%clk 0:04:54.8]} 1... Nf6 {[%clk 0:04:58.4]} 2. Bg5 {[%clk 0:04:52.4]}
2... h6 {[%clk 0:04:56.1]} 3. Bxf6 {[%clk 0:04:51.1]} 3... gxf6 {[%clk
0:04:55.8]} 4. Nf3 {[%clk 0:04:49.3]} 4... Bg7 {[%clk 0:04:55.3]} 5. e3 {[%clk
0:04:47.7]} 5... O-O {[%clk 0:04:54.3]} 6. Nc3 {[%clk 0:04:46.1]} 6... Nc6
{[%clk 0:04:53]} 7. a3 {[%clk 0:04:43.1]} 7... e5 {[%clk 0:04:50.9]} 8. d5
{[%clk 0:04:39.9]} 8... Ne7 {[%clk 0:04:48.6]} 9. e4 {[%clk 0:04:37.9]} 9... Ng6
{[%clk 0:04:47.5]} 10. g3 {[%clk 0:04:28.1]} 10... d6 {[%clk 0:04:46.4]} 11. Bg2
{[%clk 0:04:25.9]} 11... Bg4 {[%clk 0:04:44.7]} 12. Qd2 {[%clk 0:04:20.5]} 12...
Bxf3 {[%clk 0:04:41.2]} 13. Bxf3 {[%clk 0:04:18.6]} 13... a6 {[%clk 0:04:28.6]}
14. O-O {[%clk 0:04:15.3]} 14... Kh7 {[%clk 0:04:20.9]} 15. Bg4 {[%clk
0:04:10.5]} 15... Re8 {[%clk 0:04:15.8]} 16. Bf5 {[%clk 0:04:08.6]} 16... Kg8
{[%clk 0:04:13.1]} 17. f4 {[%clk 0:03:59.1]} 17... Ne7 {[%clk 0:04:11.2]} 18.
Bh3 {[%clk 0:03:51.8]} 18... exf4 {[%clk 0:04:09.5]} 19. Qxf4 {[%clk 0:03:46.3]}
19... Ng6 {[%clk 0:04:07]} 20. Qf3 {[%clk 0:03:38.3]} 20... Re5 {[%clk
0:04:03.6]} 21. Bf5 {[%clk 0:03:33.3]} 21... Qe8 {[%clk 0:03:57.2]} 22. Rae1
{[%clk 0:03:29.5]} 22... Ne7 {[%clk 0:03:50.9]} 23. Bh3 {[%clk 0:03:24.1]} 23...
Ng6 {[%clk 0:03:49.3]} 24. b4 {[%clk 0:03:13.9]} 24... Rd8 {[%clk 0:03:43.8]}
25. Bg2 {[%clk 0:03:09.2]} 25... c6 {[%clk 0:03:42.6]} 26. dxc6 {[%clk
0:03:02.9]} 26... bxc6 {[%clk 0:03:41.6]} 27. Ne2 {[%clk 0:02:53.8]} 27... d5
{[%clk 0:03:36.4]} 28. Nd4 {[%clk 0:02:47.3]} 28... dxe4 {[%clk 0:03:34.6]} 29.
Rxe4 {[%clk 0:02:44.4]} 29... Rxe4 {[%clk 0:03:33.7]} 30. Qxe4 {[%clk
0:02:41.8]} 30... Qxe4 {[%clk 0:03:33.3]} 31. Bxe4 {[%clk 0:02:39.3]} 31... Rxd4
{[%clk 0:03:32.3]} 32. Bxc6 {[%clk 0:02:36.6]} 32... Rc4 {[%clk 0:03:30]} 33.
Bb7 {[%clk 0:02:28.7]} 33... Rxc2 {[%clk 0:03:27.7]} 34. Bxa6 {[%clk 0:02:26.9]}
34... Rb2 {[%clk 0:03:24.3]} 35. Rf3 {[%clk 0:02:21.1]} 35... Ne5 {[%clk
0:03:23]} 36. Rc3 {[%clk 0:02:16.2]} 36... Bf8 {[%clk 0:03:15.8]} 37. b5 {[%clk
0:02:11.8]} 37... Kg7 {[%clk 0:03:11.6]} 38. b6 {[%clk 0:02:09.3]} 38... Rxb6
{[%clk 0:03:07.4]} 39. Bf1 {[%clk 0:02:05.6]} 39... Rb1 {[%clk 0:02:53]} 40. Kg2
{[%clk 0:02:03.1]} 40... Ra1 {[%clk 0:02:48.7]} 41. h4 {[%clk 0:01:56.7]} 41...
Rxa3 {[%clk 0:02:46.3]} 42. Rxa3 {[%clk 0:01:53.7]} 42... Bxa3 {[%clk
0:02:44.4]} 43. Kh3 {[%clk 0:01:51.9]} 43... Bd6 {[%clk 0:02:01.4]} 44. Be2
{[%clk 0:01:48.8]} 44... Ng6 {[%clk 0:01:57.3]} 45. h5 {[%clk 0:01:44]} 45...
Ne5 {[%clk 0:01:54.8]} 46. g4 {[%clk 0:01:39.4]} 46... Nd7 {[%clk 0:01:47.3]}
47. Kh4 {[%clk 0:01:36.6]} 47... Bh2 {[%clk 0:01:44.6]} 48. Kh3 {[%clk
0:01:33.5]} 48... Bg1 {[%clk 0:01:42.9]} 49. Bd3 {[%clk 0:01:30.5]} 49... Bd4
{[%clk 0:01:39.8]} 50. Bf5 {[%clk 0:01:28.9]} 50... Ne5 {[%clk 0:01:37.9]} 51.
Kg2 {[%clk 0:01:24.3]} 51... Kf8 {[%clk 0:01:27.7]} 52. Kh3 {[%clk 0:01:22]}
52... Ke7 {[%clk 0:01:26.8]} 53. Kg3 {[%clk 0:01:19.7]} 53... Kd6 {[%clk
0:01:25.2]} 54. Kf4 {[%clk 0:01:13.9]} 54... Kd5 {[%clk 0:01:24.1]} 55. Be4+
{[%clk 0:01:11.3]} 55... Kc4 {[%clk 0:01:22]} 56. Kf5 {[%clk 0:01:07.2]} 56...
Nd3 {[%clk 0:01:15.9]} 57. Bf3 {[%clk 0:00:54.5]} 57... Nf2 {[%clk 0:01:11.3]}
58. Be2+ {[%clk 0:00:47.7]} 58... Kd5 {[%clk 0:01:09.5]} 59. Bf3+ {[%clk
0:00:46.2]} 59... Kd6 {[%clk 0:01:07.7]} 60. Be2 {[%clk 0:00:39]} 60... Nh3
{[%clk 0:01:03]} 61. Bf3 {[%clk 0:00:36.5]} 61... Be5 {[%clk 0:00:59.4]} 62. Be4
{[%clk 0:00:33.3]} 62... Nf4 {[%clk 0:00:55.5]} 63. Bc2 {[%clk 0:00:27.6]} 63...
Kd5 {[%clk 0:00:52.6]} 64. Be4+ {[%clk 0:00:25.8]} 64... Kd4 {[%clk 0:00:51.2]}
65. Bb1 {[%clk 0:00:21.2]} 65... Nh3 {[%clk 0:00:46.6]} 66. Be4 {[%clk
0:00:17.8]} 66... Ke3 {[%clk 0:00:43.1]} 67. Bc6 {[%clk 0:00:14.1]} 67... Bg3
{[%clk 0:00:40]} 68. Kxf6 {[%clk 0:00:10.6]} 68... Ng5 {[%clk 0:00:36.8]} 69.
Bd7 {[%clk 0:00:06.2]} 69... Bf4 {[%clk 0:00:35.4]} 70. Bf5 {[%clk 0:00:03.8]}
70... Kf3 {[%clk 0:00:33.9]} 0-1

[Event "Live Chess"]
[Site "Chess.com"]
[Date "2024.06.02"]
[Round "-"]
[White "JanMur7"]
[Black "Tatarinov_Maxim"]
[Result "1-0"]
[WhiteElo "2271"]
[BlackElo "2261"]
[TimeControl "300"]
[EndTime "0:03:45 PDT"]
[Termination "JanMur7 won by resignation"]

1. c4 {[%clk 0:04:58.5]} 1... Nf6 {[%clk 0:04:56.7]} 2. Nc3 {[%clk 0:04:57.9]}
2... g6 {[%clk 0:04:55.7]} 3. d4 {[%clk 0:04:56.5]} 3... Bg7 {[%clk 0:04:53.1]}
4. e4 {[%clk 0:04:55.5]} 4... d6 {[%clk 0:04:52.3]} 5. Be2 {[%clk 0:04:54.4]}
5... O-O {[%clk 0:04:51.5]} 6. Bg5 {[%clk 0:04:53.7]} 6... c5 {[%clk 0:04:49.3]}
7. d5 {[%clk 0:04:51.1]} 7... b5 {[%clk 0:04:45.5]} 8. Nxb5 {[%clk 0:04:48.9]}
8... Nxe4 {[%clk 0:04:42.9]} 9. Be3 {[%clk 0:04:40.1]} 9... Bxb2 {[%clk
0:04:34.8]} 10. Rb1 {[%clk 0:04:38.7]} 10... Bg7 {[%clk 0:04:33.6]} 11. Nf3
{[%clk 0:04:36.2]} 11... a6 {[%clk 0:04:26.6]} 12. Bd3 {[%clk 0:04:28.8]} 12...
axb5 {[%clk 0:04:10.5]} 13. Bxe4 {[%clk 0:04:26.8]} 13... bxc4 {[%clk
0:04:08.6]} 14. O-O {[%clk 0:04:22.4]} 14... Rxa2 {[%clk 0:04:06.6]} 15. Rxb8
{[%clk 0:04:20.3]} 15... Qa5 {[%clk 0:04:00.4]} 16. h4 {[%clk 0:03:53.5]} 16...
c3 {[%clk 0:03:52.7]} 17. h5 {[%clk 0:03:48.1]} 17... Ra1 {[%clk 0:03:36.7]} 18.
Qxa1 {[%clk 0:03:41.8]} 18... Qxa1 {[%clk 0:03:31.4]} 19. Rxa1 {[%clk
0:03:41.7]} 1-0

[Event "Live Chess"]
[Site "Chess.com"]
[Date "2024.06.02"]
[Round "-"]
[White "Duke_of_Bebington"]
[Black "Crowded_House"]
[Result "1-0"]
[WhiteElo "1681"]
[BlackElo "1679"]
[TimeControl "300"]
[EndTime "0:04:06 PDT"]
[Termination "Duke_of_Bebington won - game abandoned"]

1. e4 {[%clk 0:04:51.4]} 1... e6 {[%clk 0:04:59]} 2. d4 {[%clk 0:04:49.8]} 2...
d5 {[%clk 0:04:57.7]} 3. Nd2 {[%clk 0:04:49.4]} 3... dxe4 {[%clk 0:04:56]} 4.
Nxe4 {[%clk 0:04:47.6]} 4... Bd7 {[%clk 0:04:55.7]} 5. Nf3 {[%clk 0:04:45]} 5...
Bc6 {[%clk 0:04:55.1]} 6. Bd3 {[%clk 0:04:43.8]} 6... Nd7 {[%clk 0:04:54.5]} 7.
O-O {[%clk 0:04:42.1]} 7... Ngf6 {[%clk 0:04:54]} 8. Re1 {[%clk 0:04:40.2]} 8...
Nxe4 {[%clk 0:04:50.9]} 9. Bxe4 {[%clk 0:04:39.3]} 9... Bxe4 {[%clk 0:04:49.9]}
10. Rxe4 {[%clk 0:04:38.3]} 10... Nf6 {[%clk 0:04:49.6]} 11. Re1 {[%clk
0:04:35.8]} 11... Bd6 {[%clk 0:04:46.6]} 12. Bg5 {[%clk 0:04:33.9]} 12... Be7
{[%clk 0:04:44.7]} 13. c3 {[%clk 0:04:29.9]} 13... h6 {[%clk 0:04:44.2]} 14. Bh4
{[%clk 0:04:28.6]} 14... Nd5 {[%clk 0:04:37.8]} 15. Bxe7 {[%clk 0:04:26.1]}
15... Nxe7 {[%clk 0:04:33.3]} 16. Ne5 {[%clk 0:04:24.4]} 16... O-O {[%clk
0:04:26.7]} 17. Re3 {[%clk 0:04:20.6]} 17... Qd6 {[%clk 0:04:10.2]} 18. Rh3
{[%clk 0:04:16]} 18... f6 {[%clk 0:04:00.8]} 19. Ng4 {[%clk 0:04:08.2]} 19...
Qf4 {[%clk 0:03:40.6]} 20. Qe2 {[%clk 0:03:59.4]} 20... Kf7 {[%clk 0:03:25.2]}
21. g3 {[%clk 0:03:53.2]} 21... Qf5 {[%clk 0:03:23.5]} 22. Rxh6 {[%clk
0:03:48.7]} 22... Rh8 {[%clk 0:03:14.2]} 23. Rxh8 {[%clk 0:03:39.5]} 23... Rxh8
{[%clk 0:03:13.2]} 24. h4 {[%clk 0:03:37.7]} 1-0

[Event "Live Chess"]
[Site "Chess.com"]
[Date "2024.06.02"]
[Round "-"]
[White "Ocelot32"]
[Black "elephantgerrald"]
[Result "1-0"]
[WhiteElo "1375"]
[BlackElo "814"]
[TimeControl "300"]
[EndTime "0:04:07 PDT"]
[Termination "Ocelot32 won by checkmate"]

1. e4 {[%clk 0:04:58]} 1... e5 {[%clk 0:04:59]} 2. Nf3 {[%clk 0:04:56.9]} 2...
Nc6 {[%clk 0:04:57.6]} 3. Bb5 {[%clk 0:04:54.4]} 3... Bc5 {[%clk 0:04:56.3]} 4.
O-O {[%clk 0:04:52.9]} 4... Nf6 {[%clk 0:04:55.3]} 5. c3 {[%clk 0:04:50.9]} 5...
O-O {[%clk 0:04:53.6]} 6. Re1 {[%clk 0:04:49.1]} 6... d6 {[%clk 0:04:52.7]} 7.
h3 {[%clk 0:04:47.9]} 7... Bxh3 {[%clk 0:04:49]} 8. gxh3 {[%clk 0:04:43.9]} 8...
Qd7 {[%clk 0:04:47.9]} 9. Bxc6 {[%clk 0:04:37.5]} 9... bxc6 {[%clk 0:04:43.8]}
10. Kh2 {[%clk 0:04:29.9]} 10... Ng4+ {[%clk 0:04:32.4]} 11. hxg4 {[%clk
0:04:26.6]} 11... Qxg4 {[%clk 0:04:29.8]} 12. Rg1 {[%clk 0:04:24.6]} 12... Qh5+
{[%clk 0:04:26.8]} 13. Kg2 {[%clk 0:04:23.4]} 13... Qg4+ {[%clk 0:04:17.9]} 14.
Kf1 {[%clk 0:04:21.9]} 14... Qf4 {[%clk 0:04:02]} 15. d4 {[%clk 0:04:20]} 15...
Qxe4 {[%clk 0:03:53.5]} 16. dxc5 {[%clk 0:04:16.6]} 16... Qc4+ {[%clk
0:03:51.7]} 17. Ke1 {[%clk 0:04:07.8]} 17... Qe4+ {[%clk 0:03:46.4]} 18. Qe2
{[%clk 0:04:05.7]} 18... Qd5 {[%clk 0:03:31.5]} 19. Nbd2 {[%clk 0:03:55.9]}
19... Rfe8 {[%clk 0:03:29.2]} 20. Nb3 {[%clk 0:03:47.9]} 20... e4 {[%clk
0:03:24.7]} 21. Nfd4 {[%clk 0:03:46.8]} 21... dxc5 {[%clk 0:03:18.7]} 22. Qg4
{[%clk 0:03:41.6]} 22... g6 {[%clk 0:03:11.5]} 23. Ne2 {[%clk 0:03:30.3]} 23...
c4 {[%clk 0:03:00.6]} 24. Nbd4 {[%clk 0:03:27.7]} 24... c5 {[%clk 0:02:56.9]}
25. Nb5 {[%clk 0:03:21.8]} 25... Rac8 {[%clk 0:02:46.5]} 26. Be3 {[%clk
0:03:17.8]} 26... Qd3 {[%clk 0:02:33.7]} 27. Na3 {[%clk 0:03:08.8]} 27... h5
{[%clk 0:02:27.2]} 28. Qxh5 {[%clk 0:03:05.4]} 28... Qd6 {[%clk 0:02:10.1]} 29.
Rd1 {[%clk 0:03:02.1]} 29... Qf6 {[%clk 0:02:07.4]} 30. Qh6 {[%clk 0:02:49.5]}
30... Qg7 {[%clk 0:01:58.6]} 31. Qxg7+ {[%clk 0:02:46.9]} 31... Kxg7 {[%clk
0:01:57.4]} 32. Bxc5 {[%clk 0:02:44.7]} 32... e3 {[%clk 0:01:55.5]} 33. Bxe3
{[%clk 0:02:42.2]} 33... f5 {[%clk 0:01:53.1]} 34. Nd4 {[%clk 0:02:39.4]} 34...
c5 {[%clk 0:01:48.3]} 35. Nxf5+ {[%clk 0:02:37.9]} 35... Kf6 {[%clk 0:01:39.6]}
36. Nd6 {[%clk 0:02:36.7]} 36... Rxe3+ {[%clk 0:01:37.1]} 37. fxe3 {[%clk
0:02:35.4]} 37... Rd8 {[%clk 0:01:33.6]} 38. Naxc4 {[%clk 0:02:34.1]} 38... Rxd6
{[%clk 0:01:31.3]} 39. Rxd6+ {[%clk 0:02:32.4]} 39... Kf5 {[%clk 0:01:29.5]} 40.
Rgxg6 {[%clk 0:02:28.5]} 40... Ke4 {[%clk 0:01:29.4]} 41. Rg4+ {[%clk
0:02:22.5]} 41... Kf3 {[%clk 0:01:28]} 42. Rg8 {[%clk 0:02:19.5]} 42... Ke4
{[%clk 0:01:23.2]} 43. Ra6 {[%clk 0:02:14.5]} 43... Kd3 {[%clk 0:01:19.8]} 44.
Rxa7 {[%clk 0:02:12.4]} 44... Kxc4 {[%clk 0:01:18]} 45. Rc8 {[%clk 0:02:10.6]}
45... Kd5 {[%clk 0:01:16.6]} 46. Rac7 {[%clk 0:02:09.2]} 46... Kd6 {[%clk
0:01:15.4]} 47. Rxc5 {[%clk 0:02:08.2]} 47... Ke6 {[%clk 0:01:13.9]} 48. R8c6+
{[%clk 0:02:06.8]} 48... Kd7 {[%clk 0:01:12.3]} 49. a4 {[%clk 0:02:05.4]} 49...
Kd8 {[%clk 0:01:10.7]} 50. a5 {[%clk 0:02:04.2]} 50... Kd7 {[%clk 0:01:09.7]}
51. a6 {[%clk 0:02:03]} 51... Ke7 {[%clk 0:01:08.6]} 52. a7 {[%clk 0:02:02]}
52... Kd7 {[%clk 0:01:08.5]} 53. a8=R {[%clk 0:01:59.6]} 53... Ke7 {[%clk
0:01:08.4]} 54. Ra7+ {[%clk 0:01:58.1]} 54... Kd8 {[%clk 0:01:07.1]} 55. Rh6
{[%clk 0:01:57.1]} 55... Ke8 {[%clk 0:01:05.6]} 56. Rh8# {[%clk 0:01:56]} 1-0

[Event "Live Chess"]
[Site "Chess.com"]
[Date "2024.06.02"]
[Round "-"]
[White "JoeyCage"]
[Black "Tushinskiy"]
[Result "0-1"]
[WhiteElo "2390"]
[BlackElo "2289"]
[TimeControl "300"]
[EndTime "0:04:16 PDT"]
[Termination "Tushinskiy won on time"]

1. e4 {[%clk 0:04:57.4]} 1... e5 {[%clk 0:04:58.9]} 2. Nf3 {[%clk 0:04:56.1]}
2... d6 {[%clk 0:04:57.9]} 3. d4 {[%clk 0:04:54.9]} 3... Bg4 {[%clk 0:04:56.7]}
4. dxe5 {[%clk 0:04:53.7]} 4... Nd7 {[%clk 0:04:52.5]} 5. exd6 {[%clk
0:04:52.3]} 5... Bxd6 {[%clk 0:04:52.4]} 6. Nc3 {[%clk 0:04:50.6]} 6... Qe7
{[%clk 0:04:51]} 7. h3 {[%clk 0:04:48.8]} 7... Bh5 {[%clk 0:04:49.8]} 8. Bc4
{[%clk 0:04:47.5]} 8... Ngf6 {[%clk 0:04:47.3]} 9. O-O {[%clk 0:04:45.5]} 9...
O-O-O {[%clk 0:04:46.3]} 10. Bg5 {[%clk 0:04:30]} 10... Ne5 {[%clk 0:04:39]} 11.
Be2 {[%clk 0:04:15.3]} 11... Nxf3+ {[%clk 0:04:37.1]} 12. Bxf3 {[%clk
0:04:14.1]} 12... Bh2+ {[%clk 0:04:37]} 13. Kxh2 {[%clk 0:04:10]} 13... Rxd1
{[%clk 0:04:36.9]} 14. Bxd1 {[%clk 0:03:57.3]} 14... Bxd1 {[%clk 0:04:28.9]} 15.
Raxd1 {[%clk 0:03:46.8]} 15... Qb4 {[%clk 0:04:21.2]} 16. Bxf6 {[%clk
0:03:38.9]} 16... gxf6 {[%clk 0:04:19.3]} 17. Rb1 {[%clk 0:03:37.9]} 17... c6
{[%clk 0:04:16.3]} 18. a3 {[%clk 0:03:36.5]} 18... Qc4 {[%clk 0:04:14.7]} 19.
Rbd1 {[%clk 0:03:31.2]} 19... Rd8 {[%clk 0:04:12.3]} 20. Rxd8+ {[%clk
0:03:25.1]} 20... Kxd8 {[%clk 0:04:11.4]} 21. Rd1+ {[%clk 0:03:24.5]} 21... Kc7
{[%clk 0:04:09.5]} 22. Rd3 {[%clk 0:03:23.5]} 22... a5 {[%clk 0:04:06.7]} 23.
Rf3 {[%clk 0:03:21.8]} 23... Qd4 {[%clk 0:04:01.5]} 24. g3 {[%clk 0:03:01.8]}
24... b5 {[%clk 0:03:59.5]} 25. Kg2 {[%clk 0:02:58.6]} 25... b4 {[%clk
0:03:57.7]} 26. axb4 {[%clk 0:02:57.5]} 26... axb4 {[%clk 0:03:57.6]} 27. Ne2
{[%clk 0:02:54.1]} 27... Qxb2 {[%clk 0:03:52.3]} 28. Nf4 {[%clk 0:02:38]} 28...
Qxc2 {[%clk 0:03:48.9]} 29. Nh5 {[%clk 0:02:36.2]} 29... b3 {[%clk 0:03:44.9]}
30. Rxf6 {[%clk 0:02:29.2]} 30... Qxe4+ {[%clk 0:03:42.6]} 31. f3 {[%clk
0:02:25.5]} 31... Qe2+ {[%clk 0:03:33]} 32. Kg1 {[%clk 0:02:23.9]} 32... b2
{[%clk 0:03:31.7]} 33. Rxf7+ {[%clk 0:02:23]} 33... Kb6 {[%clk 0:03:30.6]} 0-1

[Event "Live Chess"]
[Site "Chess.com"]
[Date "2024.06.02"]
[Round "-"]
[White "juniortay"]
[Black "booktrunk"]
[Result "1-0"]
[WhiteElo "2407"]
[BlackElo "1508"]
[TimeControl "300"]
[EndTime "0:04:30 PDT"]
[Termination "juniortay won by resignation"]

1. e4 {[%clk 0:04:57.7]} 1... b6 {[%clk 0:04:57.9]} 2. d4 {[%clk 0:04:55]} 2...
Bb7 {[%clk 0:04:56.4]} 3. Nc3 {[%clk 0:04:54.3]} 3... e6 {[%clk 0:04:54.8]} 4.
a3 {[%clk 0:04:52.8]} 4... h6 {[%clk 0:04:52.9]} 5. Nf3 {[%clk 0:04:50.1]} 5...
Nf6 {[%clk 0:04:52.2]} 6. Bd3 {[%clk 0:04:47.7]} 6... a6 {[%clk 0:04:49.3]} 7.
Qe2 {[%clk 0:04:40.3]} 7... Nc6 {[%clk 0:04:37.6]} 8. O-O {[%clk 0:04:32.5]}
8... Qe7 {[%clk 0:04:19.4]} 9. Bd2 {[%clk 0:04:27.4]} 9... e5 {[%clk 0:04:18.2]}
10. dxe5 {[%clk 0:04:19.4]} 10... Nxe5 {[%clk 0:04:16.7]} 11. Nxe5 {[%clk
0:04:18.5]} 11... Qxe5 {[%clk 0:04:15.4]} 12. f4 {[%clk 0:04:17.8]} 12... Qh5
{[%clk 0:04:12]} 13. Qxh5 {[%clk 0:04:08.9]} 13... Nxh5 {[%clk 0:04:09.7]} 14.
e5 {[%clk 0:04:05.1]} 14... g6 {[%clk 0:04:05.8]} 15. Ne4 {[%clk 0:03:58]} 15...
O-O-O {[%clk 0:04:01.1]} 16. Rad1 {[%clk 0:03:49.8]} 16... Bxe4 {[%clk
0:03:54.8]} 17. Bxe4 {[%clk 0:03:48.4]} 17... c6 {[%clk 0:03:53.9]} 18. Bc3
{[%clk 0:03:38.6]} 18... Rg8 {[%clk 0:03:51.4]} 19. f5 {[%clk 0:03:31.4]} 19...
gxf5 {[%clk 0:03:49.2]} 20. Rxf5 {[%clk 0:03:30.1]} 20... Ng7 {[%clk 0:03:47.2]}
21. Rxf7 {[%clk 0:03:27.9]} 21... Ne6 {[%clk 0:03:43.6]} 22. h4 {[%clk
0:03:16.6]} 22... Bc5+ {[%clk 0:03:41.1]} 23. Kh2 {[%clk 0:03:15.1]} 23... h5
{[%clk 0:03:27.3]} 24. Bf5 {[%clk 0:03:02.4]} 24... Rgf8 {[%clk 0:03:07]} 25.
Rdxd7 {[%clk 0:02:25.5]} 25... Rxd7 {[%clk 0:03:03.2]} 26. Rxf8+ {[%clk
0:02:18.9]} 26... Nxf8 {[%clk 0:03:00.8]} 27. e6 {[%clk 0:02:06.2]} 27... Re7
{[%clk 0:02:53.1]} 28. Bf6 {[%clk 0:01:49.5]} 28... Bd6+ {[%clk 0:02:47.6]} 29.
Kh3 {[%clk 0:01:47.6]} 29... Rxe6 {[%clk 0:02:42.3]} 30. Bg7 {[%clk 0:01:43.5]}
30... Kc7 {[%clk 0:02:35.8]} 31. Bxf8 {[%clk 0:01:40.2]} 31... Rf6 {[%clk
0:02:31.7]} 32. Bxd6+ {[%clk 0:01:33.9]} 32... Kxd6 {[%clk 0:02:29.9]} 33. g4
{[%clk 0:01:32.7]} 33... hxg4+ {[%clk 0:02:27.9]} 34. Kxg4 {[%clk 0:01:31.8]}
34... Ke5 {[%clk 0:02:27.1]} 35. Bd3 {[%clk 0:01:30]} 35... Rf2 {[%clk
0:02:20.1]} 36. h5 {[%clk 0:01:25.1]} 36... Kf6 {[%clk 0:02:17.4]} 37. h6 {[%clk
0:01:22.8]} 37... Rg2+ {[%clk 0:02:15.7]} 38. Kf3 {[%clk 0:01:21.8]} 38... Rh2
{[%clk 0:02:10.6]} 39. h7 {[%clk 0:01:18.3]} 39... Rh3+ {[%clk 0:02:08.5]} 40.
Ke4 {[%clk 0:01:17.1]} 40... Kg7 {[%clk 0:02:06.7]} 41. Ke5 {[%clk 0:01:15.2]}
41... Rh5+ {[%clk 0:02:04.7]} 42. Kd6 {[%clk 0:01:14.1]} 42... Rh6+ {[%clk
0:02:03.4]} 43. Kc7 {[%clk 0:01:12.9]} 43... b5 {[%clk 0:02:01.1]} 44. b4 {[%clk
0:01:09.3]} 44... Rd6 {[%clk 0:01:55.7]} 45. Kxd6 {[%clk 0:01:05.2]} 1-0

[Event "Live Chess"]
[Site "Chess.com"]
[Date "2024.06.02"]
[Round "-"]
[White "Tatarinov_Maxim"]
[Black "AlanBstard10"]
[Result "1-0"]
[WhiteElo "2261"]
[BlackElo "1177"]
[TimeControl "300"]
[EndTime "0:05:46 PDT"]
[Termination "Tatarinov_Maxim won by resignation"]

1. Nf3 {[%clk 0:04:57.2]} 1... d5 {[%clk 0:04:58.2]} 2. g3 {[%clk 0:04:56.1]}
2... Nf6 {[%clk 0:04:57.6]} 3. Bg2 {[%clk 0:04:55.7]} 3... Bg4 {[%clk
0:04:56.3]} 4. c4 {[%clk 0:04:52.6]} 4... Bxf3 {[%clk 0:04:55.9]} 5. Bxf3 {[%clk
0:04:51.4]} 5... g6 {[%clk 0:04:52.4]} 6. cxd5 {[%clk 0:04:50]} 6... Nxd5 {[%clk
0:04:51]} 7. Qb3 {[%clk 0:04:49]} 7... c6 {[%clk 0:04:34.8]} 8. Qxb7 {[%clk
0:04:47.1]} 8... Nd7 {[%clk 0:04:33.7]} 9. O-O {[%clk 0:04:42]} 9... Bg7 {[%clk
0:04:22.6]} 10. Qxc6 {[%clk 0:04:39.2]} 10... e6 {[%clk 0:04:14.3]} 11. Nc3
{[%clk 0:04:34.4]} 11... Rc8 {[%clk 0:04:12.2]} 12. Qa4 {[%clk 0:04:31.8]} 12...
Nxc3 {[%clk 0:04:10.3]} 13. bxc3 {[%clk 0:04:30.9]} 13... Rc7 {[%clk 0:03:56.6]}
14. Ba3 {[%clk 0:04:29.5]} 14... Bf8 {[%clk 0:03:53.5]} 15. Rab1 {[%clk
0:04:27.7]} 15... Bxa3 {[%clk 0:03:51.8]} 16. Qxa3 {[%clk 0:04:27.6]} 16... Qe7
{[%clk 0:03:48.8]} 17. Rb8+ {[%clk 0:04:25.6]} 1-0